fUST/lending_fUST_20250430
["ID","MTS","AMOUNT","RATE_DAILY","PERIOD"]
[359380647,1745964641731,-486.81,0.00027397,2]
[359380648,1745964641740,-2287.98,0.00027397,2]
[359380649,1745964641749,-400.0,0.00027397,2]
[359380650,1745964641758,-426.73,0.00027397,2]
[359380651,1745964641768,-1058.95,0.00027397,2]
[359380652,1745964641776,-400.0,0.00027397,2]
[359380653,1745964641785,-3863.88,0.00027397,2]
[359380654,1745964641795,-400.0,0.00027397,2]
[359380655,1745964641804,-1992.49,0.00027397,2]
[359380656,1745964641814,-1171.66,0.00027397,2]
[359380657,1745964641823,-1181.59,0.00027397,2]
[359380658,1745964641832,-5055.43,0.00027397,2]
[359380659,1745964641842,-500.0,0.00027397,2]
[359380660,1745964641851,-400.0,0.00027397,2]
[359380661,1745964641861,-400.0,0.00027397,2]
[359380662,1745964641870,-1266.38,0.00027397,2]
[359380663,1745964641879,-211.351126,0.00027397,2]
[359380664,1745964641889,-3183.19155206,0.00027452,7]
[359380665,1745964641898,-360.97962561,0.00027571,2]
[359380666,1745964641907,-205.92473886,0.00027661,2]
[359380667,1745964641917,-160.0,0.0002767,10]
[359380668,1745964641926,-400.0,0.00027671,2]
[359380669,1745964641935,-400.0,0.00027671,2]
[359380670,1745964641945,-467.88,0.00027671,2]
[359380671,1745964641954,-641.2,0.00027671,2]
[359380672,1745964641963,-400.0,0.00027671,2]
[359380673,1745964641973,-814.39,0.00027671,2]
[359380674,1745964641982,-400.0,0.00027671,2]
[359380675,1745964641992,-400.0,0.00027671,2]
[359380676,1745964642002,-400.0,0.00027671,2]
[359380677,1745964642011,-300.0,0.00027671,2]
[359380678,1745964642020,-300.0,0.00027671,2]
[359380679,1745964642030,-924.72,0.00027671,2]
[359380680,1745964642039,-200.0,0.00027671,2]
[359380681,1745964642048,-400.0,0.00027671,2]
[359380682,1745964642057,-302.88507804,0.00027671,2]
[359380683,1745964642066,-400.0,0.00027671,2]
[359380684,1745964642076,-400.0,0.00027671,2]
[359380685,1745964642085,-400.0,0.00027671,2]
[359380686,1745964642094,-400.0,0.00027671,2]
[359380687,1745964642104,-400.0,0.00027671,2]
[359380688,1745964642113,-400.0,0.00027671,2]
[359380689,1745964642122,-400.0,0.00027671,2]
[359380690,1745964642131,-400.0,0.00027671,2]
[359380691,1745964642140,-400.0,0.00027671,2]
[359380692,1745964642149,-400.0,0.00027671,2]
[359380693,1745964642159,-375.78271991,0.00027671,2]
[359380694,1745964642170,-400.0,0.00027671,2]
[359380695,1745964642179,-541.06,0.00027671,2]
[359380696,1745964642188,-300.0,0.00027671,2]
[359380697,1745964642198,-400.0,0.00027671,2]
[359380698,1745964642207,-400.0,0.00027671,2]
[359380699,1745964642217,-400.0,0.00027671,2]
[359380700,1745964642227,-400.0,0.00027671,2]
[359380701,1745964642236,-400.0,0.00027671,2]
[359380702,1745964642246,-400.0,0.00027671,2]
[359380703,1745964642255,-456.92,0.00027671,2]
[359380704,1745964642265,-251.413645,0.00027671,7]
[359380705,1745964642274,-400.0,0.00027671,2]
[359380706,1745964642284,-400.0,0.00027671,2]
[359380707,1745964642294,-200.0,0.00027671,2]
[359380708,1745964642303,-400.0,0.00027671,2]
[359380709,1745964642313,-200.0,0.00027671,2]
[359380710,1745964642322,-400.0,0.00027671,2]
[359380711,1745964642331,-400.0,0.00027671,2]
[359380712,1745964642341,-326.94,0.00027671,2]
[359380713,1745964642350,-400.0,0.00027671,2]
[359380714,1745964642360,-400.0,0.00027671,2]
[359380715,1745964642369,-442.45,0.00027671,2]
[359380716,1745964642379,-200.0,0.00027671,2]
[359380717,1745964642392,-400.0,0.00027671,2]
[359380718,1745964642402,-400.0,0.00027671,2]
[359380719,1745964642411,-1324.26,0.00027671,2]
[359380720,1745964642420,-765.36,0.00027671,2]
[359380721,1745964642431,-400.0,0.00027671,2]
[359380722,1745964642440,-491.39317495,0.00027671,2]
[359380723,1745964642449,-400.0,0.00027671,2]
[359380724,1745964642459,-400.0,0.00027671,2]
[359380725,1745964642469,-400.0,0.00027671,2]
[359380726,1745964642479,-400.0,0.00027671,2]
[359380727,1745964642488,-501.25,0.00027671,2]
[359380728,1745964642498,-2258.42,0.00027671,2]
[359380729,1745964642508,-491.62,0.00027671,2]
[359380730,1745964642517,-362.39931675,0.00027671,2]
[359380731,1745964642526,-403.61,0.00027671,2]
[359380732,1745964642536,-400.0,0.00027671,2]
[359380733,1745964642545,-151.0,0.00027671,7]
[359380734,1745964642555,-151.0,0.00027671,7]
[359380735,1745964642564,-400.0,0.00027671,2]
[359380736,1745964642573,-151.0,0.00027671,7]
[359380737,1745964642582,-400.0,0.00027671,2]
[359380738,1745964642592,-400.0,0.00027671,2]
[359380739,1745964642601,-173.494402,0.00027671,7]
[359380740,1745964642610,-151.0,0.00027671,7]
[359380741,1745964642620,-400.0,0.00027671,2]
[359380742,1745964642629,-400.0,0.00027671,2]
[359380743,1745964642638,-151.0,0.00027671,7]
[359380744,1745964642647,-151.0,0.00027671,7]
[359380745,1745964642656,-400.0,0.00027671,2]
[359380746,1745964642665,-820.13,0.00027671,2]
[359380747,1745964642675,-941.89,0.00027671,2]
[359380748,1745964642684,-500.0,0.00027671,2]
[359380749,1745964642693,-400.0,0.00027671,2]
[359380750,1745964642702,-400.0,0.00027671,2]
[359380751,1745964642712,-400.0,0.00027671,2]
[359380752,1745964642721,-250.0,0.00027671,5]
[359380753,1745964642730,-400.0,0.00027671,2]
[359380754,1745964642740,-541.68,0.00027671,2]
[359380755,1745964642749,-400.0,0.00027671,2]
[359380756,1745964642759,-1035.94,0.00027671,2]
[359380757,1745964642768,-151.0,0.00027671,7]
[359380758,1745964642777,-151.0,0.00027671,7]
[359380759,1745964642786,-430.86,0.00027671,2]
[359380760,1745964642795,-151.0,0.00027671,7]
[359380761,1745964642805,-151.0,0.00027671,7]
[359380762,1745964642814,-539.77,0.00027671,2]
[359380763,1745964642823,-466.18,0.00027671,2]
[359380764,1745964642832,-400.0,0.00027671,2]
[359380765,1745964642842,-972.2,0.00027671,2]
[359380766,1745964642851,-400.0,0.00027671,2]
[359380767,1745964642861,-400.0,0.00027671,2]
[359380768,1745964642870,-151.0,0.00027671,7]
[359380769,1745964642880,-518.68955539,0.00027671,2]
[359380770,1745964642890,-151.0,0.00027671,7]
[359380771,1745964642899,-151.0,0.00027671,7]
[359380772,1745964642908,-400.0,0.00027671,2]
[359380773,1745964642918,-151.0,0.00027671,7]
[359380774,1745964642927,-151.0,0.00027671,2]
[359380775,1745964642936,-400.0,0.00027671,2]
[359380776,1745964642945,-495.34,0.00027671,2]
[359380777,1745964642955,-438.9,0.00027671,2]
[359380778,1745964642964,-674.73,0.00027671,2]
[359380779,1745964642973,-400.0,0.00027671,2]
[359380780,1745964642984,-400.0,0.00027671,2]
[359380781,1745964642994,-759.88,0.00027671,2]
[359380782,1745964643004,-801.75,0.00027671,2]
[359380783,1745964643015,-400.0,0.00027671,2]
[359380784,1745964643024,-151.0,0.00027671,7]
[359380785,1745964643035,-160.0,0.00027671,7]
[359380786,1745964643044,-657.56,0.00027671,2]
[359380787,1745964643058,-151.0,0.00027671,7]
[359380788,1745964643068,-1136.94,0.00027671,2]
[359380789,1745964643079,-151.0,0.00027671,7]
[359380790,1745964643089,-400.0,0.00027671,2]
[359380791,1745964643098,-151.0,0.00027671,7]
[359380792,1745964643108,-400.0,0.00027671,2]
[359380793,1745964643118,-400.0,0.00027671,2]
[359380794,1745964643127,-1601.9,0.00027671,2]
[359380795,1745964643137,-498.91,0.00027671,2]
[359380796,1745964643148,-400.0,0.00027671,2]
[359380797,1745964643158,-1423.83,0.00027671,2]
[359380798,1745964643168,-400.0,0.00027671,2]
[359380799,1745964643177,-400.0,0.00027671,2]
[359380800,1745964643187,-400.0,0.00027671,2]
[359380801,1745964643196,-1012.1,0.00027671,2]
[359380802,1745964643206,-400.0,0.00027671,2]
[359380803,1745964643215,-400.0,0.00027671,2]
[359380804,1745964643224,-400.0,0.00027671,2]
[359380805,1745964643234,-417.21,0.00027671,2]
[359380806,1745964643243,-151.0,0.00027671,7]
[359380807,1745964643253,-400.0,0.00027671,2]
[359380808,1745964643263,-400.0,0.00027671,2]
[359380809,1745964643271,-633.5,0.00027671,2]
[359380810,1745964643280,-400.0,0.00027671,2]
[359380811,1745964643290,-400.0,0.00027671,2]
[359380812,1745964643301,-400.0,0.00027671,2]
[359380813,1745964643311,-400.0,0.00027671,2]
[359380814,1745964643320,-400.0,0.00027671,2]
[359380816,1745964643330,-1151.14,0.00027671,2]
[359380818,1745964643339,-628.07,0.00027671,2]
[359380819,1745964643349,-2748.64,0.00027671,2]
[359380820,1745964643359,-3276.42,0.00027671,2]
[359380821,1745964643368,-1373.51,0.00027671,2]
[359380822,1745964643378,-400.0,0.00027671,2]
[359380823,1745964643391,-889.04,0.00027671,2]
[359380825,1745964643401,-151.0,0.00027671,7]
[359380827,1745964643411,-151.0,0.00027671,7]
[359380828,1745964643422,-400.0,0.00027671,2]
[359380829,1745964643433,-400.0,0.00027671,2]
[359380830,1745964643442,-257.28366918,0.00027671,2]
[359380831,1745964643451,-1304.26,0.00027671,2]
[359380832,1745964643461,-400.0,0.00027671,2]
[359380833,1745964643471,-400.0,0.00027671,2]
[359380834,1745964643481,-463.89,0.00027671,2]
[359380835,1745964643490,-400.0,0.00027671,2]
[359380836,1745964643500,-769.65,0.00027671,2]
[359380837,1745964643509,-151.0,0.00027671,7]
[359380839,1745964643519,-151.0,0.00027671,7]
[359380841,1745964643528,-400.0,0.00027671,2]
[359380842,1745964643538,-400.0,0.00027671,2]
[359380843,1745964643548,-151.0,0.00027671,2]
[359380844,1745964643558,-151.0,0.00027671,2]
[359380845,1745964643567,-635.03,0.00027671,2]
[359380847,1745964643577,-974.76,0.00027671,2]
[359380849,1745964643587,-514.76,0.00027671,2]
[359380851,1745964643597,-825.21,0.00027671,2]
[359380853,1745964643606,-400.0,0.00027671,2]
[359380854,1745964643616,-400.0,0.00027671,2]
[359380855,1745964643626,-300.0,0.00027671,2]
[359380856,1745964643636,-400.0,0.00027671,2]
[359380857,1745964643646,-992.46,0.00027671,2]
[359380858,1745964643655,-1636.65,0.00027671,2]
[359380859,1745964643664,-689.98,0.00027671,2]
[359380860,1745964643673,-400.0,0.00027671,2]
[359380862,1745964643683,-151.0,0.00027671,7]
[359380864,1745964643693,-151.0,0.00027671,7]
[359380866,1745964643702,-1093.37,0.00027671,2]
[359380871,1745964643711,-151.0,0.00027671,7]
[359380872,1745964643842,-151.0,0.00027671,7]
[359380873,1745964643852,-850.14,0.00027671,2]
[359380874,1745964643861,-1686.22,0.00027671,2]
[359380876,1745964643871,-575.83,0.00027671,2]
[359380877,1745964643880,-400.0,0.00027671,2]
[359380878,1745964643889,-400.0,0.00027671,2]
[359380879,1745964643898,-400.0,0.00027671,2]
[359380880,1745964643907,-400.0,0.00027671,2]
[359380881,1745964643916,-2389.97,0.00027671,2]
[359380882,1745964643926,-816.44,0.00027671,2]
[359380883,1745964643935,-400.0,0.00027671,2]
[359380884,1745964643944,-400.0,0.00027671,2]
[359380885,1745964643953,-687.47,0.00027671,2]
[359380886,1745964643963,-605.96,0.00027671,2]
[359380887,1745964643972,-400.0,0.00027671,2]
[359380888,1745964643982,-400.0,0.00027671,2]
[359380889,1745964643991,-790.83,0.00027671,2]
[359380890,1745964643999,-400.0,0.00027671,2]
[359380891,1745964644008,-2863.42,0.00027671,2]
[359380892,1745964644018,-400.0,0.00027671,2]
[359380893,1745964644027,-400.0,0.00027671,2]
[359380894,1745964644036,-151.0,0.00027671,7]
[359380895,1745964644047,-151.0,0.00027671,7]
[359380896,1745964644056,-1912.8,0.00027671,2]
[359380897,1745964644066,-1255.28,0.00027671,2]
[359380898,1745964644075,-400.0,0.00027671,2]
[359380899,1745964644085,-1984.8,0.00027671,2]
[359380900,1745964644094,-400.0,0.00027671,2]
[359380901,1745964644103,-400.0,0.00027671,2]
[359380902,1745964644113,-400.0,0.00027671,2]
[359380903,1745964644122,-1984.9,0.00027671,2]
[359380904,1745964644131,-400.0,0.00027671,2]
[359380905,1745964644141,-421.28334683,0.00027671,7]
[359380906,1745964644151,-400.0,0.00027671,2]
[359380907,1745964644160,-1048.55,0.00027671,2]
[359380908,1745964644171,-400.0,0.00027671,2]
[359380909,1745964644181,-810.59,0.00027671,2]
[359380910,1745964644191,-151.0,0.00027671,7]
[359380911,1745964644201,-400.0,0.00027671,2]
[359380912,1745964644211,-1059.81,0.00027671,2]
[359380913,1745964644221,-1362.09,0.00027671,2]
[359380914,1745964644231,-400.0,0.00027671,2]
[359380915,1745964644240,-200.0,0.00027671,2]
[359380916,1745964644250,-400.0,0.00027671,2]
[359380917,1745964644260,-2404.79,0.00027671,2]
[359380918,1745964644269,-588.59,0.00027671,2]
[359380919,1745964644279,-780.05,0.00027671,2]
[359380920,1745964644288,-992.82,0.00027671,2]
[359380921,1745964644300,-400.0,0.00027671,2]
[359380922,1745964644309,-486.81,0.00027671,2]
[359380923,1745964644320,-2287.98,0.00027671,2]
[359380924,1745964644330,-400.0,0.00027671,2]
[359380925,1745964644340,-426.73,0.00027671,2]
[359380926,1745964644350,-1058.95,0.00027671,2]
[359380927,1745964644360,-400.0,0.00027671,2]
[359380928,1745964644371,-3863.88,0.00027671,2]
[359380930,1745964644382,-244.76034747,0.00027671,2]
[359380931,1745964644394,-1992.49,0.00027671,2]
[359380932,1745964644404,-1171.66,0.00027671,2]
[359380933,1745964644413,-1181.59,0.00027671,2]
[359380934,1745964644423,-5055.43,0.00027671,2]
[359380935,1745964644433,-400.0,0.00027671,2]
[359380936,1745964644443,-400.0,0.00027671,2]
[359380937,1745964644452,-1266.38,0.00027671,2]
[359380938,1745964644463,-247.54645685,0.00027695,2]
[359380939,1745964644472,-215.0738,0.00027706,2]
[359380940,1745964644482,-160.0,0.000279,7]
[359380941,1745964644491,-160.0,0.000279,7]
[359380942,1745964644501,-308.88710829,0.00027935,2]
[359380943,1745964644510,-160.0,0.00027944,10]
[359380944,1745964644520,-400.0,0.00027945,2]
[359380945,1745964644529,-400.0,0.00027945,2]
[359380946,1745964644539,-151.0,0.00027945,7]
[359380947,1745964644559,-151.0,0.00027945,7]
[359380948,1745964644570,-467.88,0.00027945,2]
[359380949,1745964644579,-641.2,0.00027945,2]
[359380950,1745964644588,-190.538986,0.00027945,7]
[359380951,1745964644598,-190.538986,0.00027945,7]
[359380952,1745964644607,-400.0,0.00027945,2]
[359380953,1745964644616,-814.39,0.00027945,2]
[359380954,1745964644625,-151.0,0.00027945,7]
[359380955,1745964644635,-151.0,0.00027945,7]
[359380956,1745964644644,-400.0,0.00027945,2]
[359380957,1745964644653,-400.0,0.00027945,2]
[359380958,1745964644662,-400.0,0.00027945,2]
[359380959,1745964644671,-151.0,0.00027945,7]
[359380960,1745964644681,-151.0,0.00027945,7]
[359380961,1745964644690,-924.72,0.00027945,2]
[359380962,1745964644699,-200.0,0.00027945,2]
[359380963,1745964644708,-400.0,0.00027945,2]
[359380964,1745964644718,-300.0,0.00027945,2]
[359380965,1745964644727,-300.0,0.00027945,2]
[359380966,1745964644737,-400.0,0.00027945,2]
[359380967,1745964644746,-400.0,0.00027945,2]
[359380968,1745964644757,-400.0,0.00027945,2]
[359380969,1745964644767,-400.0,0.00027945,2]
[359380970,1745964644776,-400.0,0.00027945,2]
[359380971,1745964644786,-200.0,0.00027945,2]
[359380972,1745964644797,-480.71524608,0.00027945,2]
[359380973,1745964644807,-400.0,0.00027945,2]
[359380974,1745964644816,-541.06,0.00027945,2]
[359380975,1745964644826,-400.0,0.00027945,2]
[359380976,1745964644836,-400.0,0.00027945,2]
[359380977,1745964644846,-400.0,0.00027945,2]
[359380978,1745964644856,-400.0,0.00027945,2]
[359380979,1745964644866,-400.0,0.00027945,2]
[359380980,1745964644876,-400.0,0.00027945,2]
[359380981,1745964644886,-456.92,0.00027945,2]
[359380982,1745964644895,-400.0,0.00027945,2]
[359380983,1745964644905,-400.0,0.00027945,2]
[359380984,1745964644915,-400.0,0.00027945,2]
[359380985,1745964644925,-400.0,0.00027945,2]
[359380986,1745964644935,-217.43,0.00027945,2]
[359380987,1745964644945,-400.0,0.00027945,2]
[359380988,1745964644955,-400.0,0.00027945,2]
[359380989,1745964644964,-442.45,0.00027945,2]
[359380990,1745964644973,-400.0,0.00027945,2]
[359380991,1745964644983,-400.0,0.00027945,2]
[359380992,1745964644993,-1324.26,0.00027945,2]
[359380993,1745964645002,-765.36,0.00027945,2]
[359380994,1745964645012,-400.0,0.00027945,2]
[359380995,1745964645021,-400.0,0.00027945,2]
[359380996,1745964645031,-400.0,0.00027945,2]
[359380997,1745964645042,-400.0,0.00027945,2]
[359380998,1745964645055,-243.27754743,0.00027945,2]
[359380999,1745964645065,-501.25,0.00027945,2]
[359381000,1745964645075,-2258.42,0.00027945,2]
[359381001,1745964645084,-491.62,0.00027945,2]
[359381002,1745964645095,-403.61,0.00027945,2]
[359381003,1745964645104,-300.0,0.00027945,2]
[359381004,1745964645114,-151.0,0.00027945,7]
[359381005,1745964645124,-151.0,0.00027945,7]
[359381006,1745964645134,-400.0,0.00027945,2]
[359381007,1745964645143,-151.0,0.00027945,7]
[359381008,1745964645153,-400.0,0.00027945,2]
[359381009,1745964645163,-400.0,0.00027945,2]
[359381010,1745964645174,-151.0,0.00027945,7]
[359381011,1745964645183,-151.0,0.00027945,7]
[359381012,1745964645193,-400.0,0.00027945,2]
[359381013,1745964645203,-400.0,0.00027945,2]
[359381014,1745964645214,-151.0,0.00027945,7]
[359381015,1745964645224,-151.0,0.00027945,7]
[359381016,1745964645234,-151.0,0.00027945,7]
[359381017,1745964645244,-151.0,0.00027945,7]
[359381018,1745964645255,-151.0,0.00027945,7]
[359381019,1745964645264,-151.0,0.00027945,7]
[359381020,1745964645274,-400.0,0.00027945,2]
[359381021,1745964645283,-820.13,0.00027945,2]
[359381022,1745964645293,-941.89,0.00027945,2]
[359381023,1745964645304,-400.0,0.00027945,2]
[359381024,1745964645315,-400.0,0.00027945,2]
[359381025,1745964645324,-400.0,0.00027945,2]
[359381026,1745964645333,-400.0,0.00027945,2]
[359381027,1745964645344,-541.68,0.00027945,2]
[359381028,1745964645355,-400.0,0.00027945,2]
[359381029,1745964645365,-1035.94,0.00027945,2]
[359381030,1745964645374,-151.0,0.00027945,7]
[359381031,1745964645385,-151.0,0.00027945,7]
[359381032,1745964645398,-151.0,0.00027945,7]
[359381033,1745964645408,-151.0,0.00027945,7]
[359381034,1745964645419,-430.86,0.00027945,2]
[359381035,1745964645429,-151.0,0.00027945,7]
[359381036,1745964645441,-539.77,0.00027945,2]
[359381037,1745964645451,-466.18,0.00027945,2]
[359381038,1745964645462,-400.0,0.00027945,2]
[359381039,1745964645472,-972.2,0.00027945,2]
[359381040,1745964645482,-400.0,0.00027945,2]
[359381041,1745964645492,-423.71108632,0.00027945,2]
[359381042,1745964645503,-151.0,0.00027945,7]
[359381043,1745964645514,-151.0,0.00027945,7]
[359381044,1745964645524,-400.0,0.00027945,2]
[359381045,1745964645534,-400.0,0.00027945,2]
[359381046,1745964645544,-495.34,0.00027945,2]
[359381047,1745964645556,-438.9,0.00027945,2]
[359381048,1745964645566,-674.73,0.00027945,2]
[359381049,1745964645575,-400.0,0.00027945,2]
[359381050,1745964645586,-400.0,0.00027945,2]
[359381051,1745964645595,-759.88,0.00027945,2]
[359381052,1745964645605,-801.75,0.00027945,2]
[359381053,1745964645614,-400.0,0.00027945,2]
[359381054,1745964645623,-151.0,0.00027945,7]
[359381055,1745964645633,-151.0,0.00027945,7]
[359381056,1745964645642,-657.56,0.00027945,2]
[359381057,1745964645652,-1136.94,0.00027945,2]
[359381058,1745964645661,-151.0,0.00027945,7]
[359381059,1745964645671,-151.0,0.00027945,7]
[359381060,1745964645681,-400.0,0.00027945,2]
[359381061,1745964645690,-151.0,0.00027945,7]
[359381062,1745964645700,-151.0,0.00027945,7]
[359381063,1745964645709,-400.0,0.00027945,2]
[359381064,1745964645719,-400.0,0.00027945,2]
[359381065,1745964645728,-1601.9,0.00027945,2]
[359381066,1745964645738,-498.91,0.00027945,2]
[359381067,1745964645747,-279.79474947,0.00027945,2]
[359381068,1745964645757,-1423.83,0.00027945,2]
[359381069,1745964645767,-400.0,0.00027945,2]
[359381070,1745964645777,-400.0,0.00027945,2]
[359381071,1745964645787,-400.0,0.00027945,2]
[359381072,1745964645797,-400.0,0.00027945,2]
[359381073,1745964645806,-1012.1,0.00027945,2]
[359381074,1745964645815,-400.0,0.00027945,2]
[359381075,1745964645825,-400.0,0.00027945,2]
[359381076,1745964645835,-417.21,0.00027945,2]
[359381077,1745964645844,-400.0,0.00027945,2]
[359381078,1745964645854,-400.0,0.00027945,2]
[359381079,1745964645863,-633.5,0.00027945,2]
[359381080,1745964645873,-400.0,0.00027945,2]
[359381081,1745964645883,-400.0,0.00027945,2]
[359381082,1745964645892,-400.0,0.00027945,2]
[359381083,1745964645902,-400.0,0.00027945,2]
[359381084,1745964645911,-400.0,0.00027945,2]
[359381085,1745964645921,-1151.14,0.00027945,2]
[359381086,1745964645931,-628.07,0.00027945,2]
[359381087,1745964645940,-2748.64,0.00027945,2]
[359381088,1745964645950,-3276.42,0.00027945,2]
[359381089,1745964645959,-1373.51,0.00027945,2]
[359381090,1745964645969,-400.0,0.00027945,2]
[359381091,1745964645979,-889.04,0.00027945,2]
[359381092,1745964645988,-151.0,0.00027945,7]
[359381093,1745964645998,-156.771462,0.00027945,7]
[359381094,1745964646008,-400.0,0.00027945,2]
[359381096,1745964646018,-400.0,0.00027945,2]
[359381097,1745964646027,-1304.26,0.00027945,2]
[359381098,1745964646038,-300.0,0.00027945,2]
[359381099,1745964646049,-400.0,0.00027945,2]
[359381100,1745964646059,-463.89,0.00027945,2]
[359381101,1745964646068,-400.0,0.00027945,2]
[359381102,1745964646078,-769.65,0.00027945,2]
[359381103,1745964646088,-400.0,0.00027945,2]
[359381104,1745964646098,-400.0,0.00027945,2]
[359381105,1745964646108,-151.0,0.00027945,2]
[359381106,1745964646119,-151.0,0.00027945,2]
[359381107,1745964646128,-635.03,0.00027945,2]
[359381108,1745964646138,-974.76,0.00027945,2]
[359381109,1745964646147,-514.76,0.00027945,2]
[359381110,1745964646157,-825.21,0.00027945,2]
[359381111,1745964646167,-400.0,0.00027945,2]
[359381112,1745964646177,-400.0,0.00027945,2]
[359381113,1745964646187,-400.0,0.00027945,2]
[359381114,1745964646196,-992.46,0.00027945,2]
[359381115,1745964646205,-1636.65,0.00027945,2]
[359381116,1745964646215,-689.98,0.00027945,2]
[359381117,1745964646224,-400.0,0.00027945,2]
[359381118,1745964646235,-1093.37,0.00027945,2]
[359381119,1745964646244,-151.0,0.00027945,7]
[359381120,1745964646253,-850.14,0.00027945,2]
[359381121,1745964646263,-151.0,0.00027945,7]
[359381122,1745964646272,-1686.22,0.00027945,2]
[359381123,1745964646282,-575.83,0.00027945,2]
[359381124,1745964646291,-400.0,0.00027945,2]
[359381125,1745964646302,-400.0,0.00027945,2]
[359381126,1745964646311,-400.0,0.00027945,2]
[359381127,1745964646321,-400.0,0.00027945,2]
[359381128,1745964646330,-2389.97,0.00027945,2]
[359381129,1745964646339,-816.44,0.00027945,2]
[359381130,1745964646350,-400.0,0.00027945,2]
[359381131,1745964646359,-400.0,0.00027945,2]
[359381132,1745964646368,-687.47,0.00027945,2]
[359381133,1745964646379,-605.96,0.00027945,2]
[359381134,1745964646392,-400.0,0.00027945,2]
[359381135,1745964646401,-400.0,0.00027945,2]
[359381136,1745964646411,-790.83,0.00027945,2]
[359381138,1745964646421,-400.0,0.00027945,2]
[359381140,1745964646431,-2863.42,0.00027945,2]
[359381142,1745964646441,-400.0,0.00027945,2]
[359381144,1745964646450,-400.0,0.00027945,2]
[359381145,1745964646462,-151.0,0.00027945,7]
[359381146,1745964646471,-1912.8,0.00027945,2]
[359381147,1745964646481,-151.0,0.00027945,7]
[359381148,1745964646490,-1255.28,0.00027945,2]
[359381149,1745964646499,-400.0,0.00027945,2]
[359381151,1745964646508,-1984.8,0.00027945,2]
[359381152,1745964646518,-400.0,0.00027945,2]
[359381154,1745964646528,-400.0,0.00027945,2]
[359381156,1745964646652,-400.0,0.00027945,2]
[359381157,1745964646662,-1984.9,0.00027945,2]
[359381158,1745964646672,-400.0,0.00027945,2]
[359381159,1745964646682,-400.0,0.00027945,2]
[359381160,1745964646691,-1048.55,0.00027945,2]
[359381161,1745964646701,-400.0,0.00027945,2]
[359381162,1745964646711,-810.59,0.00027945,2]
[359381163,1745964646721,-400.0,0.00027945,2]
[359381164,1745964646731,-1059.81,0.00027945,2]
[359381165,1745964646743,-1362.09,0.00027945,2]
[359381166,1745964646753,-400.0,0.00027945,2]
[359381167,1745964646763,-400.0,0.00027945,2]
[359381168,1745964646774,-2404.79,0.00027945,2]
[359381169,1745964646783,-588.59,0.00027945,2]
[359381170,1745964646793,-780.05,0.00027945,2]
[359381172,1745964646803,-992.82,0.00027945,2]
[359381173,1745964646813,-400.0,0.00027945,2]
[359381174,1745964646823,-486.81,0.00027945,2]